Cogmind - Beta 17 @@@ ROGUE MODE // 2026.08.16 @ 16:50:37 Player: President Manblast Result: Destroyed by H-77 Assassin with Coil Gun Performance ------------- Evolutions (6) 3000 Regions Visited (18) 3600 Robots Destroyed (299) 1495 Value Destroyed (12065) 12065 Prototype IDs (32) 640 Alien Tech Used (0) 0 Bonus (3359) 3359 TOTAL SCORE: 24159 Bonus ------- High Alert Combat Kills 170 Follower Combat Kills 889 Entered Garrisons 200 Used RIF Installer 500 Network Hubs Disabled 200 Met Data Miner 300 Built Enhanced Grunts 300 A7 Reached Mainframe 300 Met R17 at Cetus 500 Cogmind --------- Core Integrity 0/1150 Matter 280/300 Energy 83/100 System Corruption 14% Temperature Cool (0) Movement Core (50) Location -4/Factory Parts ------- > --- POWER (2) -------- (None) > --- PROPULSION (6) --- Centrium Wheel > --- UTILITY (8) ------ Advanced Heat Sink Advanced Targeting Computer > --- WEAPON (3) ------- (None) > --- INVENTORY (5) ---- Advanced Energy Well (500) Advanced Terrain Scan Processor Plasma Rifle Long-range Missile Launcher Power Sword Peak State ------------ > --- POWER ------------ Particle Reactor Quantum Reactor > --- PROPULSION ------- Flexi-carbon Leg Medium Armored Exoskeleton Enhanced Flexi-carbon Leg Myomer Leg > --- UTILITY ---------- Improved Cooling System High-capacity Storage Unit Improved Signal Interpreter Advanced Targeting Computer Core Analyzer Improved Weapon Cycler Improved Transmission Jammer Centrium Medium Armor Plating > --- WEAPON ----------- Advanced Variable Charge Gun Quantum Rifle Quantum Rifle > --- INVENTORY -------- Light Antimatter Reactor Carbon-fiber Leg Enhanced Flexi-carbon Leg Compact Wheel Advanced Heat Sink Advanced Cooling System Advanced Energy Well Advanced Terrain Scan Processor Tesla Rifle Wave Gun Quantum Rifle Neutron Cannon Advanced KE Penetrator Long-range Missile Launcher Long-range Missile Launcher Remote Datajack Improved Plasma Cutter Power Sword [Rating: 124] Favorites ----------- Power Neutrino Core Engine Improved Deuterium Engine Power Core Neutrino Core Reactor Light Antimatter Reactor Propulsion Thunder Leg Treads Armored Treads Leg Thunder Leg Wheel Centrium Wheel Utility Advanced Targeting Computer Device Improved Cooling System Storage High-capacity Storage Unit Processor Advanced Targeting Computer Hackware Relay Coupler [NC] Protection Centrium Medium Armor Plating Weapon Gatling Laser Energy Gun Gatling Laser Energy Cannon Phase Cannon Ballistic Gun KE Penetrator Ballistic Cannon Improved Light Cannon Launcher Advanced EMP Blaster Special Weapon Remote Datajack Slashing Weapon Great Axe Build | -11 -10 -9 -9 -8 -8 -7 -7 -7 -6 -6 -6 -6 -5 -5 -5 -5 -5 -4 ------- Run | Yrd Mat Mat Min Mat Gar Fac Low Dat Pro Fac Low Low Fac Ext Cet Arc Hub Fac Slots Evolved 12 | . . 2 . 2 . 2 . . . 2 . . 2 . . . . 2 Power 1 | . . . . . . . . . . 1 . . . . . . . . Propulsion 4 | . . 1 . . . 1 . . . . . . 1 . . . . 1 Utility 6 | . . 1 . 1 . 1 . . . 1 . . 1 . . . . 1 Weapon 1 | . . . . 1 . . . . . . . . . . . . . . Parts Attached 211 | 7 9 24 3 4 5 24 . . 1 25 7 1 24 21 7 7 11 31 Power 34 | 1 3 3 . 1 1 1 . . . 6 2 1 3 5 . 1 2 4 Engine 15 | 1 2 3 . 1 1 1 . . . 1 1 1 1 2 . . . . Core 12 | . 1 . . . . . . . . 4 1 . 2 3 . . . 1 Reactor 7 | . . . . . . . . . . 1 . . . . . 1 2 3 Propulsion 54 | 2 2 9 . . . 5 . . . 5 1 . 8 8 1 . 4 9 Treads 11 | 2 2 6 . . . 1 . . . . . . . . . . . . Leg 40 | . . 2 . . . 4 . . . 5 1 . 8 8 1 . 4 7 Wheel 3 | . . 1 . . . . . . . . . . . . . . . 2 Hover . | . . . . . . . . . . . . . . . . . . . Flight . | . . . . . . . . . . . . . . . . . . . Utility 55 | 2 . 6 1 2 1 8 . . . 5 2 . 6 3 2 1 2 14 Device 31 | 1 . 1 1 1 . 3 . . . 1 2 . 4 2 . 1 1 13 Storage 5 | 1 . 2 . . . 1 . . . . . . . . 1 . . . Processor 4 | . . . . 1 . 1 . . . 2 . . . . . . . . Hackware 1 | . . . . . . . . . . . . . . 1 . . . . Protection 14 | . . 3 . . 1 3 . . . 2 . . 2 . 1 . 1 1 Artifact . | . . . . . . . . . . . . . . . . . . . Weapon 68 | 2 4 6 2 1 3 10 . . 1 9 2 . 7 5 4 5 3 4 Energy Gun 35 | 1 2 3 . 1 . 4 . . . 4 1 . 5 4 2 4 1 3 Energy Cannon 5 | . . . . . . . . . . 2 . . 1 . 1 . . 1 Ballistic Gun 14 | 1 1 2 . . . 3 . . . 2 1 . . 1 1 1 1 . Ballistic Cannon 4 | . . 1 2 . 1 . . . . . . . . . . . . . Launcher 4 | . . . . . 1 1 . . 1 . . . 1 . . . . . Special Weapon 3 | . 1 . . . . 1 . . . . . . . . . . 1 . Impact Weapon . | . . . . . . . . . . . . . . . . . . . Slashing Weapon 3 | . . . . . 1 1 . . . 1 . . . . . . . . Piercing Weapon . | . . . . . . . . . . . . . . . . . . . Special Melee Weapon . | . . . . . . . . . . . . . . . . . . . Unidentified Prototypes 11 | . . 1 . . . 2 . . . 1 . . . . 5 . 1 1 Corrupted Parts 2 | . . . 1 . . . . . . . . . . . . . 1 . System Corruption 9 | . . . 5 . . . . . . . . . . . . . 4 . Parts Lost 59 | . 1 3 . . 1 . . . . 4 1 . 14 1 . . 3 31 Power 9 | . 1 . . . . . . . . . . . 3 . . . 1 4 Propulsion 22 | . . 1 . . . . . . . 3 1 . 6 1 . . . 10 Utility 17 | . . 1 . . . . . . . 1 . . 2 . . . 2 11 Weapon 11 | . . 1 . . 1 . . . . . . . 3 . . . . 6 Highest Loss Streak 14 | . 1 1 . . 1 . . . . 4 1 . 10 1 . . 2 14 To Critical Strikes 2 | . . . . . . . . . . . . . 2 . . . . . Average Backups 17 | 5 7 11 15 14 14 19 20 20 20 19 20 20 19 19 19 20 19 17 Power . | . . . 1 1 1 1 1 1 1 . 1 1 . 1 . 1 . . Propulsion 2 | 3 2 1 2 2 2 1 3 3 3 2 2 2 1 2 3 3 3 2 Utility 5 | . 1 2 4 4 5 7 8 8 8 8 8 8 7 5 5 6 5 5 Weapon 7 | 1 2 6 8 7 6 8 7 7 7 7 7 8 8 9 8 8 8 8 Tool/Special . | . . . . . . . . . . . . . . . . . . . Unused Backups 52 | . 4 10 1 3 1 10 . . . 2 1 . 2 2 3 1 . 12 Power 4 | . . . . . . 1 . . . . 1 . . 1 1 . . . Propulsion 9 | . 3 . . . . 2 . . . . . . . . 1 . . 3 Utility 14 | . . 2 . . . 3 . . . 1 . . 2 1 1 . . 4 Weapon 25 | . 1 8 1 3 1 4 . . . 1 . . . . . 1 . 5 Tool/Special . | . . . . . . . . . . . . . . . . . . . Average Slot Usage (%) 95 | . 100 98 100 99 99 99 100 80 100 99 99 100 91 88 88 88 87 88 Engine 4 | . 10 6 11 9 9 7 7 7 7 3 . 6 4 1 . . . . Core 4 | . 3 4 . . . . . . . 7 6 6 3 9 10 7 4 . Reactor 1 | . . . . . . . . . . 1 5 . . . . 3 5 9 Treads 10 | . 28 28 33 27 27 22 . . . . . . . . . . . . Leg 15 | . . 2 . . . 7 30 30 30 25 25 26 24 17 17 17 17 24 Device 13 | . 14 14 22 17 10 13 13 14 14 9 12 6 13 13 11 12 15 16 Storage 7 | . 14 11 11 9 9 7 7 7 7 6 6 6 5 5 5 5 5 4 Processor 13 | . . . . 8 9 14 15 15 15 21 20 20 17 17 17 17 17 14 Protection 2 | . . 7 . . 7 1 1 . . 1 . 5 2 . 4 3 1 2 Energy Gun 12 | . 12 12 15 9 8 14 15 2 14 14 10 6 7 11 12 16 12 12 Ballistic Gun 3 | . 14 5 . . . 3 7 1 4 2 1 6 2 2 4 . 3 1 Ballistic Cannon 2 | . . 4 6 18 17 . . . . . . . . . . . . . Peak Build Rating 124 | 7 10 25 24 30 31 62 62 62 62 74 75 68 84 90 100 104 111 124 Average Rating 61 | 5 8 17 23 29 30 49 61 50 61 71 72 67 71 83 96 101 102 103 On Entrance 54 | . 7 10 24 23 30 31 62 61 62 61 74 68 68 68 88 98 97 102 Avg Prop Armor Cover (%) 9 | . . 7 . . . . . . . . . . . . . . 2 19 Naked Turns . | . . . . . . . . . . . . . . . . . . . Heaviest Build 107 | 15 15 39 37 44 47 71 65 71 71 88 88 78 97 93 94 98 105 107 Greatest Support 128 | 40 40 60 60 60 60 92 92 92 92 92 81 73 93 85 85 85 90 128 Greatest Overweight (x) 4 | 4 . 1 . . . 1 . . . 1 1 1 1 2 1 1 1 1 Average Overweight (x) . | . . . . . . . . . . . . . . . . 1 . . Largest Inventory Capacity 20 | 8 8 15 15 15 15 20 20 20 20 20 20 20 20 20 20 20 20 20 Average Capacity 17 | 7 8 12 15 15 15 19 20 20 20 20 20 20 20 20 20 20 20 18 Most Carried 20 | 7 8 15 15 15 15 20 20 20 20 20 20 20 20 20 20 20 20 20 Average Carried 17 | 5 7 11 14 14 14 19 20 20 20 19 19 20 19 19 19 20 19 18 Final Capacity 20 | 8 8 15 15 15 15 20 20 20 20 20 20 20 20 20 20 20 20 5 Final Carried 20 | 7 8 15 15 15 15 20 20 20 20 20 20 20 20 20 20 20 19 5 Class Distribution -------------------- 33% | Scavenger-Gunner 18% | Gunner 10% | Scavenger-Mutant 10% | Mutant 6% | Machinist-Gunner 6% | Machinist-Mutant 5% | Machinist-Skirmisher 4% | Skirmisher 3% | Commander-Gunner Dominant Class ---------------- Mutant | -10/Materials Scavenger-Mutant | -9/Materials Mutant | -9/Mines Gunner | -8/Materials Gunner | -8/Garrison Skirmisher | -7/Factory Machinist-Skirmisher | -7/Lower Caves Machinist-Mutant | -7/Data Miner Machinist-Skirmisher | -6/Proximity Caves Machinist-Gunner | -6/Factory Gunner | -6/Lower Caves Scavenger-Gunner | -6/Lower Caves Scavenger-Gunner | -5/Factory Scavenger-Gunner | -5/Extension Scavenger-Gunner | -5/Cetus Scavenger-Gunner | -5/Archives Scavenger-Gunner | -5/Hub_04(d) Scavenger-Gunner | -4/Factory Resources | -11 -10 -9 -9 -8 -8 -7 -7 -7 -6 -6 -6 -6 -5 -5 -5 -5 -5 -4 ----------- Run | Yrd Mat Mat Min Mat Gar Fac Low Dat Pro Fac Low Low Fac Ext Cet Arc Hub Fac Matter Collected 6828 | 270 291 839 20 325 403 762 . . 236 837 202 17 540 597 253 140 463 633 Remotely . | . . . . . . . . . . . . . . . . . . . Salvage Created 13188 | 38 671 1753 . 569 590 1165 66 . 350 1061 580 17 1788 1141 271 36 1144 1948 Parts 605 | 5 49 101 . 23 36 57 5 . 12 39 15 2 76 40 12 2 62 69 Haulers Intercepted 8 | . 2 5 . 1 . . . . . . . . . . . . . . Recyclers Shooed 18 | 1 . 4 . . . 3 . . . 1 . . 4 1 . . 1 3 Parts Field Recycled . | . . . . . . . . . . . . . . . . . . . Retrieved Matter . | . . . . . . . . . . . . . . . . . . . Parts Self-Destructed 26 | . . . . . . . 5 . 9 . 12 . . . . . . . Prevented 1 | . . . . . . . . . 1 . . . . . . . . . Parts Restored . | . . . . . . . . . . . . . . . . . . . Kills | -11 -10 -9 -9 -8 -8 -7 -7 -7 -6 -6 -6 -6 -5 -5 -5 -5 -5 -4 ------- Run | Yrd Mat Mat Min Mat Gar Fac Low Dat Pro Fac Low Low Fac Ext Cet Arc Hub Fac Combat Hostiles Destroyed 232 | . 18 33 . 12 21 19 1 . 9 22 5 1 28 15 4 . 16 28 Melee 2 | . . . . . . . . . . . . . . . . . 1 1 Guns 158 | . 18 19 . 5 3 17 1 . 5 19 3 . 14 12 4 . 15 23 Cannons 45 | . . 10 . 7 15 1 . . . 1 2 1 7 1 . . . . AOE 16 | . . 4 . . 3 . . . 4 . . . 4 . . . . 1 Classes Destroyed 18 | 1 5 4 . . 1 1 . . 1 1 . 1 3 . . . . . Worker 9 | . . 3 . . . 1 . . . . . . 2 . . . . 3 Builder 11 | . 1 . . 1 . 1 . . . 1 . . 2 2 . . 2 1 Tunneler 8 | 2 . 3 . . . 2 . . . . . . . . . . . 1 Hauler 8 | . 2 5 . 1 . . . . . . . . . . . . . . Recycler 10 | . . 4 . . . 3 . . . . . . 3 . . . . . Operator 4 | . . . . . . . . . . 1 . . . . . 1 1 1 Watcher 17 | . 2 4 . . . 2 . . . 3 . . . 2 . . 3 1 Swarmer 49 | . 9 10 . . 7 . . . 6 6 . . 8 . . . . 3 Grunt 107 | . 9 16 . 9 5 13 . . 3 7 3 . 10 11 . . 5 16 Brawler 4 | . . . . . 2 . . . . . 1 . . . . . . 1 Duelist 6 | . . 1 . . 3 . . . . 1 . . . . . . . 1 Sentry 30 | . . 6 . 3 4 2 1 . . 4 1 . 1 4 . . 1 3 Specialist 2 | . . . . . . . . . . . . . 2 . . . . . Hunter 8 | . . . . . . . . . . . . . 2 . . . 4 2 Programmer 18 | . . . . . . 4 . . . 4 . . 4 . . . 4 2 Heavy 1 | . . . . . . . . . . . . . 1 . . . . . Cetus Guard 4 | . . . . . . . . . . . . . . . 4 . . . Lightning 2 | . . . . . . . . . . . . . . . . . 2 . Samaritan 2 | . . . . . . . . . 1 . 1 . . . . . . . Thief 1 | . . . . . . . . . . . . 1 . . . . . . Best Kill Streak 10 | 2 8 5 . 4 10 4 1 . 3 6 4 1 10 7 2 1 5 7 Combat Bots Only 10 | . 8 4 . 3 10 3 1 . 3 6 4 1 7 5 2 . 5 6 Max Kills in Single Turn 7 | 1 2 2 . 2 3 2 1 . 2 2 1 1 7 2 1 1 3 1 Gunslinging 1 | . 1 1 . . . . . . . 1 . . 1 1 . . 1 . Exploded 4 | . . 2 . . 3 . . . 2 . . . 4 . . . . 1 Melee 1 | . . . . . . . . . . . . . . . . . 1 1 Uniques/NPCs Destroyed . | . . . . . . . . . . . . . . . . . . . Combat | -11 -10 -9 -9 -8 -8 -7 -7 -7 -6 -6 -6 -6 -5 -5 -5 -5 -5 -4 -------- Run | Yrd Mat Mat Min Mat Gar Fac Low Dat Pro Fac Low Low Fac Ext Cet Arc Hub Fac Hostile Shots Fired 1258 | . 89 136 . 36 56 87 . . 27 145 37 2 153 42 27 9 98 314 Missed 362 | . 15 39 . 10 14 34 . . 15 39 6 . 41 10 15 1 19 104 Hits 896 | . 74 97 . 26 42 53 . . 12 106 31 2 112 32 12 8 79 210 Melee 14 | . . 3 . . 4 . . . . 1 . 2 . . . . . 4 Projectile 882 | . 74 94 . 26 38 53 . . 12 105 31 . 112 32 12 8 79 206 AOE 3 | . . . . . . 2 . . . . . . . . . . . 1 Critical Strikes 50 | . 1 2 . 2 1 1 . . . 2 2 . 11 2 6 1 7 12 Part Disruptions 1 | . . . . . . . . . . . . . . . . . 1 . Damage Taken 16578 | . 760 1098 . 388 559 720 . . 170 1680 615 17 2479 687 306 290 2014 4795 Core 2536 | . 104 177 . . 34 65 . . . 231 62 . 366 10 . 70 253 1164 Absorbed by Shields 280 | . . . . . . . . . . . . . 84 127 69 . . . Redirected to Shielding 100 | . . . . . . . . . . . . . . . . . . 100 Regen/Repaired (Parts) 210 | . . . . 110 . . . . . 100 . . . . . . . . Core Remaining (%) 70 | 100 58 . 55 . 93 . . . 90 . . 65 . . . . 30 . Volleys Fired 687 | 3 68 121 . 30 35 46 1 . 16 49 18 2 86 51 17 6 59 79 Largest 3 | 1 2 2 . 3 3 3 3 . 3 3 3 3 3 3 3 3 3 3 Hottest 268 | 50 100 100 . 122 126 197 188 . 188 240 235 203 247 247 197 255 268 268 Shots Fired 1589 | 3 130 229 . 90 101 117 3 . 33 134 38 5 173 124 50 17 125 217 Gun 1250 | 3 124 152 . 30 33 109 3 . 28 125 19 3 115 106 50 17 123 210 Cannon 301 | . . 72 . 60 67 3 . . . 7 19 2 57 8 . . . 6 Launcher 8 | . . . . . 1 . . . 5 . . . 1 . . . . 1 Special 30 | . 6 5 . . . 5 . . . 2 . . . 10 . . 2 . Kinetic 523 | . 62 154 . 60 67 36 1 . 2 34 . 1 22 24 17 . 25 18 Thermal 958 | 3 68 13 . 30 33 76 2 . 26 97 38 4 143 90 33 17 93 192 Explosive 3 | . . . . . 1 . . . . . . . 1 . . . . 1 Electromagnetic 86 | . . 62 . . . . . . 5 1 . . 7 . . . 5 6 Robot Hit Streak 47 | 1 17 14 . 27 29 33 27 . 47 15 11 6 19 14 16 4 13 22 Robot Miss Streak 6 | 1 3 6 . 2 3 2 . . 2 5 1 1 3 3 5 2 5 3 Penetration Max 1 | . . . . . . . . . . 1 . . 1 1 1 . 1 1 Secondary Targets 26 | . 2 2 . . . . . . . 6 . . 3 2 1 . 1 9 Max Gunslinging Chain 2 | . 1 1 . . . . . . . 1 . . 1 2 1 . 1 1 Shots Hit Robots 1120 | 2 93 158 . 61 65 97 2 . 22 110 30 4 117 82 38 11 73 155 Core Hits 630 | 2 37 84 . 25 30 74 5 . 27 85 15 2 66 36 21 6 38 77 Critical Kills 5 | . . . . . . 1 . . . . 1 . 1 . 1 . . 1 Critical Parts Destroyed 6 | . . . . . . . . . . 1 . . 1 . . . 3 1 Critical Strikes 47 | . 1 3 . 2 12 1 . . . 1 2 1 7 5 3 1 3 5 Burn 26 | . 1 . . 1 6 . . . . . 1 1 5 5 2 1 . 3 Meltdown 2 | . . . . . . . . . . . 1 . 1 . . . . . Destroy 9 | . . . . . . 1 . . . 1 . . 1 . 1 . 3 2 Blast 10 | . . 3 . 1 6 . . . . . . . . . . . . . Melee Attacks 87 | . . . . . 4 32 . . 13 20 7 . . 1 . . 6 4 Impact . | . . . . . . . . . . . . . . . . . . . Slashing 87 | . . . . . 4 32 . . 13 20 7 . . 1 . . 6 4 Piercing . | . . . . . . . . . . . . . . . . . . . Sneak Attacks 3 | . . . . . . 2 . . . 1 . . . . . . . . Combat Hostiles . | . . . . . . . . . . . . . . . . . . . Follow-up Attacks . | . . . . . . . . . . . . . . . . . . . Damage Inflicted 28015 | 38 1153 2947 . 1176 1598 2641 66 . 657 2706 1062 89 3511 1875 1010 309 2312 4865 Guns 20666 | 38 1153 1465 . 395 349 2432 66 . 494 2447 283 59 2027 1781 1010 309 2143 4215 Cannons 4591 | . . 1144 . 781 1045 51 . . . 124 306 30 900 94 . . . 116 Explosions 1561 | . . 332 . . 204 . . . 163 . . . 548 . . . . 314 Melee 1002 | . . . . . . 136 . . . 125 473 . . . . . 151 117 Ramming 195 | . . 6 . . . 22 . . . 10 . . 36 . . . 18 103 Kinetic 7350 | . 568 1729 . 781 1045 437 . . . 513 . 23 467 426 406 . 526 429 Thermal 17019 | 38 585 401 . 395 349 2046 66 . 494 2058 589 66 2292 1449 604 309 1492 3786 Explosive 1066 | . . . . . 204 . . . . . . . 548 . . . . 314 Electromagnetic 1383 | . . 811 . . . . . . 163 . . . 168 . . . 125 116 Impact . | . . . . . . . . . . . . . . . . . . . Slashing 1002 | . . . . . . 136 . . . 125 473 . . . . . 151 117 Piercing . | . . . . . . . . . . . . . . . . . . . Highest Corruption 19 | . 2 . 5 . . 3 3 3 3 5 5 1 3 4 4 4 19 14 Average Corruption 3 | . 1 . 5 . . 1 3 3 3 3 4 1 2 3 4 3 6 2 Corruption Purged 8 | . . . . . . . . . . . 4 . . . . 4 . . Corruption Blocked . | . . . . . . . . . . . . . . . . . . . Effects 229 | . 2 . 7 . . 19 . 2 17 48 19 1 18 43 11 2 25 15 Message Errors 51 | . . . 2 . . 3 . 1 4 8 6 . 5 9 3 2 7 1 Matter Fused 57 | . . . 2 . . 3 . . 5 13 4 1 5 10 2 . 7 5 Heat Flow Errors 32 | . . . 1 . . 4 . . 2 9 2 . 1 7 2 . 4 . Energy Discharges 41 | . 2 . 2 . . 3 . . 2 9 2 . 4 7 1 . 4 5 Parts Fused 3 | . . . . . . 1 . . . 1 . . . . . . 1 . Data Loss (minor) 24 | . . . . . . 3 . 1 . 5 2 . 2 6 2 . 1 2 Data Loss (major) 4 | . . . . . . . . . 1 1 . . . . 1 . . 1 Misfires 11 | . . . . . . 2 . . 3 1 2 . . 1 . . 1 1 Alerts 4 | . . . . . . . . . . 1 1 . 1 1 . . . . Weapon Failures 2 | . . . . . . . . . . . . . . 2 . . . . Overload Shots 1 | . . . . . . . . . . . . . . . . . . 1 Overflow Damage 362 | . . 10 . . 9 . . . 16 80 171 . 35 . . . . 41 Projectiles 33 | . . 10 . . 9 . . . . . . . 14 . . . . . Explosions 37 | . . . . . . . . . 16 . . . 21 . . . . . Melee 292 | . . . . . . . . . . 80 171 . . . . . . 41 Knockbacks 31 | . . 5 . 12 11 1 . . . . . . . . . . 1 1 Impact 2 | . . . . . . . . . . . . . . . . . 1 1 Kinetic 28 | . . 5 . 11 11 1 . . . . . . . . . . . . Secondary 1 | . . . . 1 . . . . . . . . . . . . . . Self-Inflicted Damage 88 | . . 39 . . . . . . 21 . . . . . . . . 28 Shots 2 | . . 1 . . . . . . 1 . . . . . . . . . Rammed 12 | . . 3 . . . . . . . . . . . . . . . 9 Targets Rammed 22 | . . 3 . . . 2 . . . 1 . . 4 . . . 2 10 Kicked 10 | . . . . . . 2 . . . 1 . . 4 . . . 2 1 Crushed . | . . . . . . . . . . . . . . . . . . . Highest Temperature 595 | 30 233 24 70 30 21 245 30 . 165 372 445 81 279 422 370 192 422 595 Average Temperature 109 | 16 48 10 35 15 5 50 20 . 20 102 219 53 86 126 126 96 140 190 Received Heat Transfer 3497 | . 303 309 . 243 135 216 . . 21 603 288 . 330 219 18 36 81 695 Effects 15 | . . . . . . . . . . 3 3 . . 2 . . 1 6 Shutdowns 4 | . . . . . . . . . . 1 . . . . . . 1 2 Energy Bleed 2 | . . . . . . . . . . . 1 . . . . . . 1 Interference 3 | . . . . . . . . . . 1 . . . 2 . . . . Matter Decay 3 | . . . . . . . . . . . 1 . . . . . . 2 Short Circuit 3 | . . . . . . . . . . 1 1 . . . . . . 1 Siege Activations . | . . . . . . . . . . . . . . . . . . . Martial Activations . | . . . . . . . . . . . . . . . . . . . Shielding Activations . | . . . . . . . . . . . . . . . . . . . Robots Disrupted 1 | . . 1 . . . . . . . . . . . . . . . . Combat Hostiles 1 | . . 1 . . . . . . . . . . . . . . . . Robots Corrupted 3 | . . . . . . . . . . . . . 1 . . . . 2 Combat Hostiles 2 | . . . . . . . . . . . . . 1 . . . . 1 Parts Fried 12 | . . 2 . . . . . . 1 . . . 3 1 . . 1 4 Impact Corruptions 1 | . . . . . . . . . . . . . . . . . . 1 Robots Melted 10 | . . . . . . 1 . . . 2 1 . 2 2 . . . 2 Combat Hostiles 9 | . . . . . . 1 . . . 2 . . 2 2 . . . 2 Parts Melted 62 | . 1 . . 1 2 4 1 . 1 16 5 . 8 9 . . 1 13 Heat Transferred 31610 | 111 1589 550 . 1036 1256 4300 150 . 1125 4333 964 237 4674 2553 1073 518 1813 5328 Parts Sabotaged . | . . . . . . . . . . . . . . . . . . . Parts Stolen 1 | . . . . . . . . . . . . 1 . . . . . . Parts Stripped . | . . . . . . . . . . . . . . . . . . . Power Chain Reactions 7 | . . 5 . . . . . . 2 . . . . . . . . . Alert | -11 -10 -9 -9 -8 -8 -7 -7 -7 -6 -6 -6 -6 -5 -5 -5 -5 -5 -4 ------- Run | Yrd Mat Mat Min Mat Gar Fac Low Dat Pro Fac Low Low Fac Ext Cet Arc Hub Fac Maximum Alert Level 2 | . 1 2 1 1 2 1 . . . . . . 2 1 . 1 1 1 Low Security (%) 66 | 100 94 36 57 98 22 40 . . . 100 . . 64 86 100 95 45 40 Level 1 27 | . 5 34 42 1 25 59 . . . . . . 32 13 . 4 54 59 Level 2 5 | . . 28 . . 51 . . . . . . . 2 . . . . . Level 3 . | . . . . . . . . . . . . . . . . . . . Level 4 . | . . . . . . . . . . . . . . . . . . . Level 5 . | . . . . . . . . . . . . . . . . . . . High Security . | . . . . . . . . . . . . . . . . . . . Max Security . | . . . . . . . . . . . . . . . . . . . Peak Influence 682 | 10 212 609 231 201 682 357 . . . 197 . . 404 235 128 210 280 388 Initial 357 | . . 53 231 54 109 357 . . . 81 . . . 192 27 28 . 84 Average 167 | 1 70 286 188 120 395 222 . . . 69 . . 138 131 40 65 182 232 Influence Increases 8464 | 10 482 1168 . 497 583 639 20 . 255 727 125 . 903 735 296 212 752 1060 Destroy 0b10 Robot/C 5000 | . 360 660 . 300 420 380 20 . 180 440 100 . 560 440 160 80 340 560 Destroy 0b10 Robot/NC 365 | 10 25 95 . 10 . 45 . . . 25 15 . 35 20 10 10 30 35 Destroy Leader 1000 | . 78 188 . 82 10 114 . . 30 136 10 . 110 54 . . 76 112 Allied During Kill 367 | . . . . 8 . . . . . . . . . 78 106 90 85 . Successful Hack 290 | . 12 20 . 30 14 51 . . . 32 . . 39 23 8 . 14 47 Disable Machine 360 | . . 90 . 15 . 15 . . . 45 . . 45 . . 30 75 45 Anti-Garrison Action 50 | . . . . . 50 . . . . . . . . . . . . . Destroy Structure 522 | . 7 25 . 7 29 19 . . . 19 . . 84 120 12 2 102 96 Partial Spotted 30 | . . . . . . 15 . . . . . . . . . . . 15 Lose Combat Pursuer 480 | . . 90 . 45 60 . . . 45 30 . . 30 . . . 30 150 Influence Decreases 8156 | 10 355 702 452 469 70 1021 141 179 124 676 307 . 509 1080 273 284 578 926 Entered New Map 1674 | . . 74 362 87 60 325 111 179 . 50 68 . . 202 22 44 . 90 Time Decay 5462 | 10 345 598 90 342 . 696 30 . 124 576 239 . 369 628 171 240 478 526 Lost Part 580 | . 10 30 . . 10 . . . . 40 . . 140 10 . . 30 310 Lost Ally 290 | . . . . 40 . . . . . 10 . . . 90 80 . 70 . Purge Threat 150 | . . . . . . . . . . . . . . 150 . . . . Squads Dispatched 47 | . 5 6 . 1 . 9 . . . 6 . . 8 2 . . 4 6 Investigation 12 | . 3 1 . . . 5 . . . . . . 2 . . . . 1 Extermination 15 | . . . . . . 4 . . . 4 . . 2 . . . 2 3 Reinforcement 18 | . 2 5 . . . . . . . 1 . . 4 2 . . 2 2 Assault . | . . . . . . . . . . . . . . . . . . . Garrison 2 | . . . . 1 . . . . . 1 . . . . . . . . Intercept . | . . . . . . . . . . . . . . . . . . . Searches Triggered . | . . . . . . . . . . . . . . . . . . . Construction Impeded 3 | . . . . . . . . . . . . . 1 1 . . 1 . Haulers Reinforced 1 | . . . . . . . . . . . . . 1 . . . . . Active Scanning Responses . | . . . . . . . . . . . . . . . . . . . Cargo Convoy Interrupts . | . . . . . . . . . . . . . . . . . . . Stealth | -11 -10 -9 -9 -8 -8 -7 -7 -7 -6 -6 -6 -6 -5 -5 -5 -5 -5 -4 --------- Run | Yrd Mat Mat Min Mat Gar Fac Low Dat Pro Fac Low Low Fac Ext Cet Arc Hub Fac Distress Signals 15 | . . 1 . 3 . . . . . . . . 3 1 2 . 2 3 Communications Jammed 23 | . . . . . . . . . . . . . . . . 1 . 22 Distress Signals 23 | . . . . . . . . . . . . . . . . 1 . 22 Times Spotted 355 | . 28 53 . 23 22 24 . . 12 36 5 1 33 23 11 7 31 46 Peak Tracking Total 7 | . 5 5 . 6 6 4 . . 4 6 4 1 7 4 5 2 6 7 Tactical Retreats 25 | . . 5 . 1 3 . . . 3 2 . . 2 . . . 2 7 Traps | -11 -10 -9 -9 -8 -8 -7 -7 -7 -6 -6 -6 -6 -5 -5 -5 -5 -5 -4 ------- Run | Yrd Mat Mat Min Mat Gar Fac Low Dat Pro Fac Low Low Fac Ext Cet Arc Hub Fac Traps Triggered 12 | . 3 5 . . 1 . . . . 2 . . . 1 . . . . Indirectly . | . . . . . . . . . . . . . . . . . . . Trap Hack Attempts . | . . . . . . . . . . . . . . . . . . . Triggered . | . . . . . . . . . . . . . . . . . . . Disarmed . | . . . . . . . . . . . . . . . . . . . Reprogrammed . | . . . . . . . . . . . . . . . . . . . Reused . | . . . . . . . . . . . . . . . . . . . Traps Extracted . | . . . . . . . . . . . . . . . . . . . Installed . | . . . . . . . . . . . . . . . . . . . Triggered . | . . . . . . . . . . . . . . . . . . . Machines | -11 -10 -9 -9 -8 -8 -7 -7 -7 -6 -6 -6 -6 -5 -5 -5 -5 -5 -4 ---------- Run | Yrd Mat Mat Min Mat Gar Fac Low Dat Pro Fac Low Low Fac Ext Cet Arc Hub Fac Machines Disabled 25 | . . 6 . 1 1 1 . . . 3 . . 3 . . 2 5 3 Max in Single Turn 2 | . . 2 . 1 1 1 . . . 1 . . 1 . . . 1 1 Garrison Access 4 | . . . . . . 2 . . . 1 . . . . . . . 1 Garrison Relay 1 | . . . . . 1 . . . . . . . . . . . . . Network Hub 1 | . . . . . . . . . . . . . . . . . 1 . Machines Repaired . | . . . . . . . . . . . . . . . . . . . Machines Dismantled 1 | . . . . . . . . . . . . . . . . . 1 . Machines Sabotaged . | . . . . . . . . . . . . . . . . . . . Overloaded Fab Kills . | . . . . . . . . . . . . . . . . . . . Hacking | -11 -10 -9 -9 -8 -8 -7 -7 -7 -6 -6 -6 -6 -5 -5 -5 -5 -5 -4 --------- Run | Yrd Mat Mat Min Mat Gar Fac Low Dat Pro Fac Low Low Fac Ext Cet Arc Hub Fac Machines Accessed 85 | . 8 3 . 6 3 17 . 4 . 15 1 . 10 7 1 . 4 6 Terminals 48 | . 7 2 . 3 3 7 . . . 5 . . 6 6 1 . 4 4 Fabricators 9 | . . . . . . 4 . . . 2 . . 2 . . . . 1 Repair Stations 7 | . . . . 1 . 1 . . . 4 . . 1 . . . . . Recycling Units 4 | . 1 . . . . 1 . . . 1 . . . 1 . . . . Scanalyzers 7 | . . 1 . 1 . 2 . . . 2 . . 1 . . . . . Garrison Access 5 | . . . . 1 . 2 . . . 1 . . . . . . . 1 Total Hacks 224 | . 14 10 . 19 7 38 . 21 . 36 1 . 24 18 1 . 9 26 Successful 115 | . 7 6 . 14 1 18 . 21 . 14 1 . 9 10 1 . 2 11 Failed 109 | . 7 4 . 5 6 20 . . . 22 . . 15 8 . . 7 15 Catastrophic 15 | . 2 . . . . . . . . 4 . . 4 1 . . 1 3 Database Lockouts . | . . . . . . . . . . . . . . . . . . . Manual 67 | . 12 2 . 10 . 9 . . . 13 . . 6 6 1 . 1 7 Terminals 131 | . 13 8 . 12 7 17 . . . 13 . . 14 17 1 . 9 20 Fabricators 23 | . . . . . . 10 . . . 4 . . 4 . . . . 5 Repair Stations 19 | . . . . 5 . 2 . . . 10 . . 2 . . . . . Recycling Units 8 | . 1 . . . . 2 . . . 4 . . . 1 . . . . Scanalyzers 13 | . . 2 . 1 . 3 . . . 3 . . 4 . . . . . Garrison Access 8 | . . . . 1 . 4 . . . 2 . . . . . . . 1 Terminal Hacks 60 | . 3 3 . 5 1 5 . 21 . 1 1 . 4 7 1 . 1 7 Record 6 | . . . . . . . . 4 . . . . . . . . . 2 Part Schematic 13 | . . . . . . 1 . 10 . . . . . 2 . . . . Robot Schematic 4 | . . . . . . . . 4 . . . . . . . . . . Robot Analysis 3 | . . . . 3 . . . . . . . . . . . . . . Prototype ID Bank 8 | . . 2 . . . 1 . 3 . . . . . 2 . . . . Open Door 3 | . . . . . . . . . . . 1 . 1 . 1 . . . Level Access Points 1 | . . . . . . . . . . . . . . . . . 1 . Branch Access Points 4 | . . . . . . 1 . . . 1 . . 1 . . . . 1 Terminal Index 3 | . 1 . . . . 1 . . . . . . . . . . . 1 Unreport Threat 1 | . . . . . . . . . . . . . . 1 . . . . Locate Traps 5 | . 1 . . 1 . . . . . . . . 1 2 . . . . Reinforcement Status 1 | . . . . . . . . . . . . . 1 . . . . . Recall Extermination 1 | . . . . . . . . . . . . . . . . . . 1 Hauler Manifests 2 | . 1 . . 1 . . . . . . . . . . . . . . Registered Components 2 | . . 1 . . . . . . . . . . . . . . . 1 Zone Layout 2 | . . . . . . 1 . . . . . . . . . . . 1 Patrol Navigation 1 | . . . . . 1 . . . . . . . . . . . . . Fabricator Hacks 11 | . . . . . . 7 . . . . . . 2 . . . . 2 Network Status 2 | . . . . . . 1 . . . . . . . . . . . 1 Load Schematic 5 | . . . . . . 3 . . . . . . 1 . . . . 1 Build 4 | . . . . . . 3 . . . . . . 1 . . . . . Repair Station Hacks 9 | . . . . 4 . . . . . 5 . . . . . . . . Scan Component 5 | . . . . 2 . . . . . 3 . . . . . . . . Repair 4 | . . . . 2 . . . . . 2 . . . . . . . . Recycling Unit Hacks 1 | . . . . . . . . . . 1 . . . . . . . . Retrieve Components 1 | . . . . . . . . . . 1 . . . . . . . . Scanalyzer 3 | . . 1 . 1 . . . . . . . . 1 . . . . . Insert Component 1 | . . . . . . . . . . . . . 1 . . . . . Retrieve Study 2 | . . 1 . 1 . . . . . . . . . . . . . . Garrison Access Hacks 8 | . . . . 1 . 4 . . . 2 . . . . . . . 1 Unlock Access 1 | . . . . 1 . . . . . . . . . . . . . . Seal Access 4 | . . . . . . 2 . . . 1 . . . . . . . 1 Coupler Status 3 | . . . . . . 2 . . . 1 . . . . . . . . Unauthorized Hacks 23 | . 4 2 . 3 . 2 . . . 5 . . 2 3 . . 1 1 Terminals 19 | . 3 2 . 3 . 2 . . . 3 . . 1 3 . . 1 1 Assimilate 3 | . 1 . . . . 1 . . . 1 . . . . . . . . Botnet 11 | . 1 1 . 2 . 1 . . . 1 . . 1 2 . . 1 1 Operators 5 | . 1 1 . 1 . . . . . 1 . . . 1 . . . . Fabricators . | . . . . . . . . . . . . . . . . . . . Repair Stations 2 | . . . . . . . . . . 1 . . 1 . . . . . Mechanics 2 | . . . . . . . . . . 1 . . 1 . . . . . Recycling Units 2 | . 1 . . . . . . . . 1 . . . . . . . . Recyclers 2 | . 1 . . . . . . . . 1 . . . . . . . . Scanalyzers . | . . . . . . . . . . . . . . . . . . . Garrison Access . | . . . . . . . . . . . . . . . . . . . Data Cores Recovered 2 | . . . . . . . . . . . . . . . . . 1 1 Used 2 | . . . . . . . . . . . . . . . . . 1 1 Hacking Detections 65 | . 5 2 . 2 3 15 . . . 15 . . 8 5 1 . 4 5 Full Trace Events 8 | . . . . . . 5 . . . . . . 2 . . . . 1 Feedback Events 2 | . . . . . . 1 . . . . . . 1 . . . . . Corruption 2 | . . . . . . 1 . . . . . . 1 . . . . . Feedback Blocked . | . . . . . . . . . . . . . . . . . . . Robot Schematics Acquired 4 | . . . . . . . . 4 . . . . . . . . . . Robots Built . | . . . . . . . . . . . . . . . . . . . Authchips . | . . . . . . . . . . . . . . . . . . . Time . | . . . . . . . . . . . . . . . . . . . Total Robot Build Rating . | . . . . . . . . . . . . . . . . . . . Part Schematics Acquired 13 | . . . . . . 1 . 10 . . . . . 2 . . . . Parts Built 8 | . . . . . . 6 . . . . . . 2 . . . . . Authchips . | . . . . . . . . . . . . . . . . . . . Time 424 | . . . . . . 318 . . . . . . 106 . . . . . Total Part Build Rating 48 | . . . . . . 36 . . . . . . 12 . . . . . Part Studies Acquired 2 | . . 1 . 1 . . . . . . . . . . . . . . Parts Repaired 4 | . . . . 2 . . . . . 2 . . . . . . . . Time 136 | . . . . 52 . . . . . 84 . . . . . . . . Parts Recycled . | . . . . . . . . . . . . . . . . . . . Recycled Matter . | . . . . . . . . . . . . . . . . . . . Retrieved Matter . | . . . . . . . . . . . . . . . . . . . Retrieved Components 9 | . . . . . . . . . . 9 . . . . . . . . Parts Scanalyzed 1 | . . . . . . . . . . . . . 1 . . . . . Part Schematics Acquired . | . . . . . . . . . . . . . . . . . . . Parts Damaged . | . . . . . . . . . . . . . . . . . . . Bothacking | -11 -10 -9 -9 -8 -8 -7 -7 -7 -6 -6 -6 -6 -5 -5 -5 -5 -5 -4 ------------ Run | Yrd Mat Mat Min Mat Gar Fac Low Dat Pro Fac Low Low Fac Ext Cet Arc Hub Fac Used RIF Installer 1 | . . . . . 1 . . . . . . . . . . . . . Robots Hacked 12 | . . . . . . 3 . . . 2 . . . 5 . . 2 . Non-combat 11 | . . . . . . 3 . . . 2 . . . 4 . . 2 . Combat 1 | . . . . . . . . . . . . . . 1 . . . . Robot Hacks Applied 15 | . . . . . . 3 . . . 2 . . . 8 . . 2 . parse_system 2 | . . . . . . 1 . . . . . . . 1 . . . . find_chute 4 | . . . . . . 2 . . . 2 . . . . . . . . ignore_repairs 6 | . . . . . . . . . . . . . . 4 . . 2 . streamctrl_low 1 | . . . . . . . . . . . . . . 1 . . . . formatsys_low 2 | . . . . . . . . . . . . . . 2 . . . . Relay Couplers Released 5 | . . . . . 4 1 . . . . . . . . . . . . Machine Destruction 5 | . . . . . 4 1 . . . . . . . . . . . . Attached 1 | . . . . . . . . . . . . . . 1 . . . . Fabnet Peak Effective % . | . . . . . . . . . . . . . . . . . . . Robots Rewired 13 | . . . . . . . . . . . . . . 13 . . . . Allies Hacked . | . . . . . . . . . . . . . . . . . . . Hacks Repelled . | . . . . . . . . . . . . . . . . . . . Allies | -11 -10 -9 -9 -8 -8 -7 -7 -7 -6 -6 -6 -6 -5 -5 -5 -5 -5 -4 -------- Run | Yrd Mat Mat Min Mat Gar Fac Low Dat Pro Fac Low Low Fac Ext Cet Arc Hub Fac Total Allies 24 | . . . 2 . . . . . . 1 . . . 16 5 . . . Largest Group 10 | . . . 2 2 . . . . . 1 . . . 10 8 6 5 . Highest-Rated Group 680 | . . . 45 45 . . . . . 10 . . . 413 680 553 394 . Highest-Rated Ally 159 | . . . 31 31 . . . . . 10 . . . 159 159 159 96 . Total Orders 30 | . . . . . . . . . . 4 . . . 23 . . 3 . STAY 10 | . . . . . . . . . . 2 . . . 6 . . 2 . FOLLOW 10 | . . . . . . . . . . 2 . . . 7 . . 1 . TUNNEL 10 | . . . . . . . . . . . . . . 10 . . . . Ally Attacks 168 | . . . . 19 . . . . . . . . . 61 41 19 28 . Total Damage 4070 | . . . . 316 . . . . . . . . . 1372 1122 639 621 . Kills 24 | . . . . 3 . . . . . . . . . 8 6 5 2 . Allies Corrupted 3 | . . . . . . . . . . . . . . . . . 3 . Allies Melted . | . . . . . . . . . . . . . . . . . . . Intel | -11 -10 -9 -9 -8 -8 -7 -7 -7 -6 -6 -6 -6 -5 -5 -5 -5 -5 -4 ------- Run | Yrd Mat Mat Min Mat Gar Fac Low Dat Pro Fac Low Low Fac Ext Cet Arc Hub Fac Active Infowar (turns) 14057 | 73 1260 595 187 754 186 2396 63 112 936 1768 1052 10 525 1903 36 779 899 523 Sensors 9467 | . . . . . . 2053 63 112 935 1768 1020 10 525 1693 36 203 899 150 Seismic 3390 | 73 1260 595 187 754 186 272 . . . . . . . . . . . 63 Jamming 1710 | . . . . . . 71 . . 41 . 32 . . 663 . 576 . 327 ECM 5 | . . . . . . . . . . . . . . . . . . 5 Robot Analysis Total 3 | . . . . 3 . . . . . . . . . . . . . . Derelict Logs Recovered 5 | . . . 1 . . . . . 2 . 2 . . . . . . . Drone Launches . | . . . . . . . . . . . . . . . . . . . Drone Recoveries . | . . . . . . . . . . . . . . . . . . . Exploration | -11 -10 -9 -9 -8 -8 -7 -7 -7 -6 -6 -6 -6 -5 -5 -5 -5 -5 -4 ------------- Run | Yrd Mat Mat Min Mat Gar Fac Low Dat Pro Fac Low Low Fac Ext Cet Arc Hub Fac Turns Passed 20632 | 152 1260 1904 187 776 910 2908 69 114 986 2589 1092 186 1256 2160 577 792 1237 1477 Spaces Moved 10061 | 80 608 818 98 315 434 1420 52 89 558 1532 688 97 579 810 241 308 458 876 Core 146 | 17 . . . . . . . . . . . . . . . . . 129 Treads 3328 | 63 608 786 98 315 434 1024 . . . . . . . . . . . . Legs 6587 | . . 32 . . . 396 52 89 558 1532 688 97 579 810 241 308 458 747 Wheels . | . . . . . . . . . . . . . . . . . . . Hover . | . . . . . . . . . . . . . . . . . . . Flight . | . . . . . . . . . . . . . . . . . . . Fastest Speed 50 | 50 160 160 170 170 170 120 120 120 120 120 120 120 114 126 126 209 126 50 Average Speed 153 | 159 160 162 170 170 170 156 120 120 120 125 137 179 142 198 201 209 203 109 Slowest Speed 260 | 250 160 240 170 170 170 250 120 120 120 180 185 185 190 260 209 209 220 209 Overloaded Moves . | . . . . . . . . . . . . . . . . . . . Propulsion Burnouts . | . . . . . . . . . . . . . . . . . . . Robots Hopped . | . . . . . . . . . . . . . . . . . . . Potential Cave-ins 15 | . . . . . . . . . . . . . . 15 . . . . Cave-ins Triggered . | . . . . . . . . . . . . . . . . . . . Exploration Rate (%) 49 | 6 96 73 44 39 51 37 18 68 65 34 82 15 13 64 83 94 26 23 Regions Visited 18 Branch Regions 10 Pre-discovered Areas 3 | . . . 1 . . . . 1 1 . . . . . . . . . Known Exits Taken 13 | . . . . 1 . 1 1 1 1 1 1 1 1 1 1 1 1 . Unknown Exits Taken 4 | 1 1 1 1 . . . . . . . . . . . . . . . Scrap Searched 12 | . . . 1 . . . . . . . 11 . . . . . . . Spaces Dug 84 | . 6 3 . . . 15 . . 13 16 3 . 9 2 . . 13 4 Terrain Destroyed 232 | . 6 22 . 3 4 15 . . 22 17 9 1 42 7 4 . 32 48 Melee 46 | . . . . . . 15 . . 13 15 . . . 1 . . 2 . Projectile 119 | . 6 7 . 3 . . . . . 2 9 1 26 6 4 . 30 25 AOE 67 | . . 15 . . 4 . . . 9 . . . 16 . . . . 23 Terrain Rammed . | . . . . . . . . . . . . . . . . . . . Walls Destroyed . | . . . . . . . . . . . . . . . . . . . Machines Disabled . | . . . . . . . . . . . . . . . . . . . Actions | -11 -10 -9 -9 -8 -8 -7 -7 -7 -6 -6 -6 -6 -5 -5 -5 -5 -5 -4 --------- Run | Yrd Mat Mat Min Mat Gar Fac Low Dat Pro Fac Low Low Fac Ext Cet Arc Hub Fac Total 13837 | 98 754 1177 118 493 520 1950 55 95 812 2038 793 104 860 1291 311 446 667 1255 Wait 2030 | 2 43 145 16 129 32 331 2 . 213 335 55 1 122 196 19 109 96 184 Move 10042 | 79 607 817 97 314 432 1419 51 88 557 1531 687 96 578 809 240 307 457 876 Hop . | . . . . . . . . . . . . . . . . . . . Pick Up 151 | 7 8 23 1 8 1 29 . . . 19 4 . 13 8 7 . 2 21 Fast Attach 86 | 7 1 11 . . . 7 . 3 . 9 3 1 7 5 7 5 3 17 Attach 46 | . 1 4 . 2 1 2 . . . 7 1 . 10 . . . 3 15 Detach 6 | . . . . . . 1 . . . . . . 2 . 1 . . 2 Swap 303 | . 15 22 3 4 13 49 1 1 13 40 11 3 26 37 5 9 27 24 Drop 211 | . 11 31 1 6 2 32 . 3 . 27 7 1 12 22 15 10 8 23 Fire 687 | 3 68 121 . 30 35 46 1 . 16 49 18 2 86 51 17 6 59 79 Melee 87 | . . . . . 4 32 . . 13 20 7 . . 1 . . 6 4 Ram 9 | . . . . . . . . . . . . . . . . . . 9 Kick 10 | . . . . . . 2 . . . 1 . . 4 . . . 2 1 Crush 3 | . . 3 . . . . . . . . . . . . . . . . Escape Stasis . | . . . . . . . . . . . . . . . . . . . Rewire 162 | . . . . . . . . . . . . . . 162 . . . . Trap . | . . . . . . . . . . . . . . . . . . . Miscellaneous 4 | . . . . . . . . . . . . . . . . . 4 . Route ------- -11/Scrapyard -10/Materials (discovered 6 exits: *Mat x3 / [*Min x2] / [*Sub]) -9/Materials (discovered 5 exits: *Mat x3 / [*Min x2]) -9/Mines -8/Materials -8/Garrison (discovered 2 exits: *Fac x2) -7/Factory (discovered 6 exits: *Fac x2 / *Sto x2 / *Low x2) -7/Lower Caves -7/Data Miner -6/Proximity Caves -6/Factory (discovered 2 exits: *Low x2) -6/Lower Caves -6/Lower Caves -5/Factory (discovered 4 exits: *Upp x2 / *Ext x2) -5/Extension (discovered 2 exits: *Fac / *Cet) -5/Cetus (discovered 2 exits: *Fac / *Arc) -5/Archives (discovered 3 exits: *Fac / *Hub x2) -5/Hub_04(d) (discovered 4 exits: *Fac x4) -4/Factory (discovered 3 exits: Upp x2 / Arm) History --------- Turn | Location | Event 36 | -11/Scrapyard | Discovered new exit (range 15) 153 | -11/Scrapyard | Entered Materials 317 | -10/Materials | Build established: Mutant 350 | -10/Materials | Discovered new exit (range 16) 352 | -10/Materials | Discovered new exit (range 13) 501 | -10/Materials | Discovered new exit (range 15) 550 | -10/Materials | Discovered new exit (range 14) 923 | -10/Materials | Discovered new exit (range 5) 987 | -10/Materials | Discovered new exit (range 13) 1053 | -10/Materials | Derelicts attacked the area 1108 | -10/Materials | Destroyed 8 combat bots 1350 | -10/Materials | Build established: Scavenger-Mutant 1413 | -10/Materials | Entered another Materials area 1413 | -9/Materials | Evolved 2 slots: Propulsion x1, Utility x1 1648 | -9/Materials | Discovered new exit (range 9) 1720 | -9/Materials | Discovered new exit (range 16) 2147 | -9/Materials | Discovered new exit (range 16) 2518 | -9/Materials | Discovered new exit (range 4) 3076 | -9/Materials | Discovered new exit (range 15) 3317 | -9/Materials | Entered Mines 3456 | -9/Mines | Received a Rocket Launcher from a helpful Derelict 3478 | -9/Mines | Build established: Mutant 3479 | -9/Mines | Discovered new exit (range 8) 3504 | -9/Mines | Entered Materials 3504 | -8/Materials | Accompanied by 2 allies 3504 | -8/Materials | Evolved 2 slots: Utility x1, Weapon x1 3509 | -8/Materials | Led the pair of lost Derelicts to an unsafe place 3677 | -8/Materials | Repaired Lgt. Armor Plating 3704 | -8/Materials | Repaired Lgt. Armor Plating 3804 | -8/Materials | Build established: Gunner 4079 | -8/Materials | Garrison activated, responded to threat 4221 | -8/Materials | Identified exit to Garrison 4280 | -8/Materials | Entered Garrison 4302 | -8/Garrison | Triggered checkpoint 4329 | -8/Garrison | Garrison Relay disabled 4402 | -8/Garrison | Triggered checkpoint 4476 | -8/Garrison | Triggered checkpoint 4616 | -8/Garrison | Discovered new exit (range 12) 4704 | -8/Garrison | Triggered checkpoint 4704 | -8/Garrison | Triggered checkpoint 4757 | -8/Garrison | Destroyed 10 combat bots 4861 | -8/Garrison | Discovered new exit (range 3) 5058 | -8/Garrison | Triggered checkpoint 5119 | -8/Garrison | Installed Relay Interface Framework 5190 | -8/Garrison | Entered Factory 5190 | -7/Factory | Evolved 2 slots: Propulsion x1, Utility x1 5197 | -7/Factory | Discovered new exit (range 7) 5538 | -7/Factory | Discovered new exit (range 5) 5545 | -7/Factory | Identified exit to Lower Caves 5650 | -7/Factory | Identified exit to Storage 5759 | -7/Factory | Build established: Skirmisher 6193 | -7/Factory | Identified exit to Factory 6968 | -7/Factory | Discovered exit to Factory (range 16) 7249 | -7/Factory | Fabricated Thunder Leg (x2) 7408 | -7/Factory | Fabricated Thunder Leg (x2) 7810 | -7/Factory | Fabricated Thunder Leg (x2) 8098 | -7/Factory | Entered Lower Caves 8156 | -7/Lower Caves | A Derelict revealed a hidden shortcut to meet someone special 8166 | -7/Lower Caves | Identified exit to Data Miner 8167 | -7/Lower Caves | Entered Data Miner 8169 | -7/Data Miner | Discovered new exit (range 6) 8176 | -7/Data Miner | Identified exit to Proximity Caves 8192 | -7/Data Miner | Met Data Miner 8212 | -7/Data Miner | Learned location of Section 7 (-2) 8212 | -7/Data Miner | Acquired the access code to Warlord's prototype stash 8233 | -7/Data Miner | Received God Mode back door access code from Data Miner 8281 | -7/Data Miner | Entered Proximity Caves 8497 | -6/Proximity Caves | Learned location of Extension (-5) 8514 | -6/Proximity Caves | Learned Factory terminal intel 8571 | -6/Proximity Caves | Build established: Machinist-Skirmisher 8949 | -6/Proximity Caves | Build established: Machinist-Mutant 9109 | -6/Proximity Caves | Spotted B-75 Beast 9189 | -6/Proximity Caves | Discovered exit to Factory (range 11) 9267 | -6/Proximity Caves | Entered Factory 9267 | -6/Factory | Evolved 2 slots: Power x1, Utility x1 9268 | -6/Factory | Loaded intel: 26 terminal locations 9460 | -6/Factory | Repaired Thunder Leg 9562 | -6/Factory | Build established: Machinist-Gunner 9821 | -6/Factory | Garrison activated, responded to threat 10204 | -6/Factory | Build established: Machinist-Mutant 10573 | -6/Factory | Build established: Machinist-Gunner 11046 | -6/Factory | Identified exit to Lower Caves 11210 | -6/Factory | Lost 4 parts (3n1u) 11465 | -6/Factory | Build established: Gunner 11517 | -6/Factory | Repaired Thunder Leg 11856 | -6/Factory | Entered Lower Caves 12308 | -6/Lower Caves | Learned Factory terminal intel 12564 | -6/Lower Caves | Attracted the attention of an 0b10 outpost 12884 | -6/Lower Caves | Encountered a Warlord checkpoint 12906 | -6/Lower Caves | Learned Factory emergency access door positions 12933 | -6/Lower Caves | Discovered new exit (range 15) 12945 | -6/Lower Caves | Identified exit to Lower Caves 12948 | -6/Lower Caves | Entered another Lower Caves area 13097 | -6/Lower Caves | Discovered new exit (range 5) 13103 | -6/Lower Caves | Identified exit to Factory 13134 | -6/Lower Caves | Entered Factory 13134 | -5/Factory | Evolved 2 slots: Propulsion x1, Utility x1 13136 | -5/Factory | Loaded intel: 27 terminal locations 13260 | -5/Factory | Build established: Scavenger-Gunner 13351 | -5/Factory | Identified exit to Upper Caves 13351 | -5/Factory | Identified exit to Extension 13778 | -5/Factory | Fabricated Thunder Leg? 13917 | -5/Factory | Destroyed 7 combat bots 14014 | -5/Factory | Lost 10 parts (1p5n2u2w) 14243 | -5/Factory | Watched by a mysterious "MATRIX" hacker 14390 | -5/Factory | Entered Extension 15051 | -5/Extension | Rescued A7 15658 | -5/Extension | Build established: Commander-Gunner 16346 | -5/Extension | Build established: Scavenger-Gunner 16517 | -5/Extension | Discovered new exit (range 10) 16518 | -5/Extension | Discovered new exit (range 6) 16543 | -5/Extension | Identified exit to Cetus 16550 | -5/Extension | Entered Cetus 16550 | -5/Cetus | Accompanied by 5 allies (A7) 16555 | -5/Cetus | Acquired a Cetus Manufacturing Module code from A7 16567 | -5/Cetus | Spotted Cetus Guard 16567 | -5/Cetus | Spotted Cetus Guard 16568 | -5/Cetus | Spotted Cetus Guard 16570 | -5/Cetus | Spotted Cetus Guard 16579 | -5/Cetus | Destroyed Cetus Guard 16586 | -5/Cetus | Allies destroyed Cetus Guard 16586 | -5/Cetus | Destroyed Cetus Guard 16589 | -5/Cetus | Allies destroyed Cetus Guard 16706 | -5/Cetus | Started Cetus Manufacturing Module 16721 | -5/Cetus | Escorted A7 to Cetus Mainframe 16731 | -5/Cetus | Manufactured an Enhanced Grunt 16756 | -5/Cetus | Manufactured an Enhanced Grunt 16781 | -5/Cetus | Manufactured an Enhanced Grunt 16806 | -5/Cetus | Manufactured an Enhanced Grunt 16831 | -5/Cetus | Manufactured an Enhanced Grunt 16916 | -5/Cetus | Discovered new exit (range 15) 16954 | -5/Cetus | Spotted Cetus Guard 16954 | -5/Cetus | Spotted Cetus Guard 16958 | -5/Cetus | Spotted Cetus Guard 16958 | -5/Cetus | Spotted Cetus Guard 16961 | -5/Cetus | Allies destroyed Cetus Guard 16968 | -5/Cetus | Allies destroyed Cetus Guard 16971 | -5/Cetus | Destroyed Cetus Guard 16976 | -5/Cetus | Destroyed Cetus Guard 17013 | -5/Cetus | Discovered new exit (range 16) 17025 | -5/Cetus | Met Revision 17 17120 | -5/Cetus | Identified exit to Archives 17127 | -5/Cetus | Entered Archives 17127 | -5/Archives | Accompanied by 6 allies (A7) 17132 | -5/Archives | Received a hacking code to weaken MAIN.C 17198 | -5/Archives | Discovered new exit (range 15) 17234 | -5/Archives | Unable to access archive contents 17249 | -5/Archives | Discovered new exit (range 15) 17386 | -5/Archives | Discovered new exit (range 16) 17641 | -5/Archives | Identified exit to Hub_04(d) 17713 | -5/Archives | Identified exit to Factory 17919 | -5/Archives | Entered Hub_04(d) 17919 | -5/Hub_04(d) | Accompanied by 5 allies 18710 | -5/Hub_04(d) | Core integrity fell below 50% 19025 | -5/Hub_04(d) | Network Hub disabled 19038 | -5/Hub_04(d) | Spotted Lightning 19039 | -5/Hub_04(d) | Spotted Lightning 19069 | -5/Hub_04(d) | Destroyed Lightning 19078 | -5/Hub_04(d) | Destroyed Lightning 19089 | -5/Hub_04(d) | System corruption reached 10% 19109 | -5/Hub_04(d) | Lost 4 allies 19117 | -5/Hub_04(d) | Spotted Lightning 19122 | -5/Hub_04(d) | Spotted Lightning 19135 | -5/Hub_04(d) | Spotted Lightning 19156 | -5/Hub_04(d) | Entered Factory 19156 | -4/Factory | Evolved 2 slots: Propulsion x1, Utility x1 19399 | -4/Factory | Spotted B-86 Titan 19804 | -4/Factory | Lost 3 parts (1p1n1u) 19921 | -4/Factory | Lost 5 parts (2n2u1w) 20214 | -4/Factory | Identified exit to Upper Caves 20214 | -4/Factory | Identified exit to Armory 20569 | -4/Factory | Core integrity fell below 50% 20591 | -4/Factory | Lost 14 parts (2p5n4u3w) 20594 | -4/Factory | System corruption reached 10% 20630 | -4/Factory | Core integrity fell below 20% 20633 | -4/Factory | Destroyed by H-77 Assassin with Coil Gun Last Messages --------------- corruption cleaned. 20599_ Slammed into K-01 Serf. 20599_ K-01 Serf knocked back. 20599_ Destabilizing: Core damaged (-11). 20601_ Slammed into K-01 Serf. 20603_ K-01 Serf destroyed. 20605_ Slammed into K-01 Serf. 20607_ Slammed into R-10 Processor. 20608_ System corrupted: Matter fused (-8). 20608_ Acquired 3 matter. 20611_ Acquired Centrium Wheel. 20624_ Acquired ECM Suite. 20629_ Fusion Modulator explodes. 20629_ P-70 Sage destroyed. 20629_ Fusion Modulator explodes. 20629_ ECM Suite destroyed. 20629_ Fusion Modulator explodes. 20631_ K-01 Serf collects debris. 20633_ Slug penetrates Wall. 20633_ Penetrated by Slug. Map ----- +----------------------------------------------------+ | ?????????????# ## #????????????????? | | ?????????????#%## #????????????????? | | ?????????????# ## #????????????????? | | ?????????????#%## #????????????????? | | ?????????????#=## #????????????????? | | ?????????????#*## #????????????????? | | ?????????????#%## #????????????????? | | ?????????????#=#?? #????????????????? | | ?????????????# #???? #####????????????? | | ?????????????#%#?????? ? " # ###??????????? | | ?????????????# #?????###+#### """"####???????? | | ?????????????# #?????# ; !!!#???????? | | ????????######+####### ; ##??????? | | ????????# # = "#??????? | | ????????# """"" + "##?????? | | ????????# ""T"" # " #?????? | | ????????# # "#??????? | | ????????# # "#??????? | | ????????# # " #?????? | | ????????# # " #?????? | | ????????# """ """ ! # ; "##?????? | | ????????# """ """ # ; ["#??????? | | ????????# """ """ # u##"" " """"###??????? | | ????????? # ########### ##????????? | | ?????????? # h#?????????? #?????????? | | ?????????############# @ #???????????#?????????? | | ?????????????????????# #?????????????????????? | | ??=??????????????????# h#?????????????????????? | | ?????????????????????# +?????????????????????? | | ?????????????????????# #?????????????????????? | | ?????????????????????# #?????????????????????? | | ?????????????????????# k #???!?????????????????? | | ?????????????????????# #?????????????????????? | | ?????????????????????# #?????????????????????? | | ?????????????????????+ ?????????????????????? | | ?????????????????????# #?????????????????????? | | ?????????????????????# #?????????????????????? | | ?????????????????????# #?????????????????????? | | ?????????????????????# ??????????????????????? | | ?????????????????????# ??????????????????????? | | ??????????????????????? ??????????????????????? | | ?????????????????????????????????????????????????? | | ?????????????????????????????????????????????????? | | ?????????????????????????????????????????????????? | | ?????????????????????????????????????????????????? | | ?????????????????????????????????????????????????? | | ?????????????????????????????????????????????????? | | ?????????????????????????????????????????????????? | | ?????????????????????????????????????????????????? | | ?????????????????????????????????????????????????? | +----------------------------------------------------+ Best States ------------- Heat Dissipation 101 Energy Generation 43 Energy Capacity 590 Matter Stores 300 Matter Capacity 300 Sight Range 16 Robot Scan Range 15 Terrain Scan Density 10 Jamming Range 16 Base Temperature (-) 200 Corruption Containment 8 Armor Coverage 225 Propulsion Shielding 66 Weapon Cycling 20 Evasion (%) 70 Targeting Accuracy 8 Core Analysis 6 Recoil Reduction 4 Matter Filtering 50 Relay Coupler Types 1 Relay Coupler Value 20 Authchip Count 1 Item Schematics ----------------- Thunder Leg | -7/Factory | Hacked Combat Drone Bay | -7/Data Miner | Free Lgt. Regenerative Plating | -7/Data Miner | Free Cld. Cesium-ion Thruster | -7/Data Miner | Free Thermal Defense Suite | -7/Data Miner | Free Imp. Heavy Machine Gun | -7/Data Miner | Free Nuclear Pulse Array | -7/Data Miner | Free Imp. Corruption Screen | -7/Data Miner | Free Wave Gun | -7/Data Miner | Free Field Propulsion Drive | -7/Data Miner | Free Adv. Medium Treads | -7/Data Miner | Free Imp. Thunder Leg | -5/Extension | Hacked Imp. Cooling System | -5/Extension | Hacked Robot Schematics ------------------ B-48 Gladiator | -7/Data Miner | Free E-15 Imp | -7/Data Miner | Free S-27 Virus | -7/Data Miner | Free G-50 Soldier | -7/Data Miner | Free Fabricated ------------ Thunder Leg | x2 | -7/Factory Thunder Leg | x2 | -7/Factory Thunder Leg | x2 | -7/Factory Thunder Leg | x2 | -5/Factory Repaired ---------- Lgt. Armor Plating | 21% | -8/Materials Lgt. Armor Plating | 56% | -8/Materials Thunder Leg | 57% | -6/Factory Thunder Leg | 73% | -6/Factory Studied --------- Imp. Light Cannon | -9/Materials | Hacked Assault Cannon | -8/Materials | Hacked Alien Tech Used ----------------- None Achievements -------------- None Challenges ------------ None Game ------ Seed TerrainDisruptorSlayer Manual? 0 Play Time 04:45:37 Cumulative 172.3 hours Start 2026.08.13 @ 16:45:09 End 2026.08.16 @ 16:50:37 Sessions 15 Manual Loads 0 Difficulty Rogue Special Mode None Game No. 74 Rogue 73 Adventurer 1 Explorer 0 Win Type - Total 2 Types 2/0/0/0/0/0/0/0/0/0 Lore% 53 Gallery% 49 Achievement% 41 Wizard Run 0 Options --------- Layout 1 ASCII 0 Keyboard 0 Movement Numpad Keybinds 0 Fullscreen 1 Font 24/Smallcaps Map View 50x35 Zoom Use 0% Tactical HUD 1 Map Filters NONE Filters NONE Steam 1 RUN: 9fe3810e-f4d2-4df5-80cb-478336641f46